[Event "Live Chess"]
[Site "Chess.com"]
[Date "2023.05.20"]
[Round "-"]
[White "PiotrD11"]
[Black "mliszewski"]
[Result "0-1"]
[WhiteElo "1328"]
[BlackElo "1905"]
[TimeControl "300"]
[EndTime "11:07:39 PDT"]
[Termination "mliszewski won on time"]

1. e4 {[%clk 0:04:59.1]} 1... c6 {[%clk 0:04:58.9]} 2. d4 {[%clk 0:04:57.6]}
2... d5 {[%clk 0:04:58.8]} 3. e5 {[%clk 0:04:56.4]} 3... c5 {[%clk 0:04:58]} 4.
dxc5 {[%clk 0:04:54.1]} 4... Nc6 {[%clk 0:04:56.7]} 5. Nf3 {[%clk 0:04:50.2]}
5... Bg4 {[%clk 0:04:53.4]} 6. Bb5 {[%clk 0:04:47.8]} 6... e6 {[%clk 0:04:51.8]}
7. O-O {[%clk 0:04:47.2]} 7... Bxc5 {[%clk 0:04:50.7]} 8. h3 {[%clk 0:04:42.8]}
8... Bxf3 {[%clk 0:04:47.1]} 9. Qxf3 {[%clk 0:04:40.6]} 9... Ne7 {[%clk
0:04:46.7]} 10. Bxc6+ {[%clk 0:04:39.9]} 10... Nxc6 {[%clk 0:04:45.3]} 11. Be3
{[%clk 0:04:38.5]} 11... Bxe3 {[%clk 0:04:43.3]} 12. Qxe3 {[%clk 0:04:37.3]}
12... O-O {[%clk 0:04:43.1]} 13. c3 {[%clk 0:04:34.3]} 13... Qc7 {[%clk
0:04:37.5]} 14. Nd2 {[%clk 0:04:28.5]} 14... Nxe5 {[%clk 0:04:35.8]} 15. Nb3
{[%clk 0:04:13.6]} 15... Nc4 {[%clk 0:04:34.5]} 16. Qd4 {[%clk 0:04:09]} 16...
b6 {[%clk 0:04:32.1]} 17. Rab1 {[%clk 0:04:04.6]} 17... a5 {[%clk 0:04:27.4]}
18. Nd2 {[%clk 0:04:03.1]} 18... Nxd2 {[%clk 0:04:25.9]} 19. Qxd2 {[%clk
0:04:03]} 19... b5 {[%clk 0:04:24.5]} 20. Rfc1 {[%clk 0:03:48.6]} 20... Rfb8
{[%clk 0:04:23.3]} 21. Qd4 {[%clk 0:03:44.6]} 21... Qc4 {[%clk 0:04:21.3]} 22.
Qe5 {[%clk 0:03:42.9]} 22... b4 {[%clk 0:04:16.7]} 23. cxb4 {[%clk 0:03:38.6]}
23... Qxb4 {[%clk 0:04:15.9]} 24. Rc7 {[%clk 0:03:37.3]} 24... Rb7 {[%clk
0:04:04.1]} 25. Rxb7 {[%clk 0:03:18.9]} 25... Qxb7 {[%clk 0:04:04]} 26. b3
{[%clk 0:03:16.4]} 26... Rc8 {[%clk 0:04:00.6]} 27. a3 {[%clk 0:03:06.7]} 27...
h6 {[%clk 0:03:56.2]} 28. b4 {[%clk 0:03:05.3]} 28... axb4 {[%clk 0:03:54.9]}
29. axb4 {[%clk 0:03:01.2]} 29... Rc4 {[%clk 0:03:51.4]} 30. b5 {[%clk
0:02:58.6]} 30... Rc5 {[%clk 0:03:44.7]} 31. b6 {[%clk 0:02:51.9]} 31... Rc6
{[%clk 0:03:43.9]} 32. Qd4 {[%clk 0:02:46.4]} 32... f6 {[%clk 0:03:40]} 33. Kh1
{[%clk 0:02:34.2]} 33... Kh8 {[%clk 0:03:32.6]} 34. Qb4 {[%clk 0:02:21.8]} 34...
e5 {[%clk 0:03:26.4]} 35. Qf8+ {[%clk 0:02:21]} 35... Kh7 {[%clk 0:03:25.1]} 36.
Qd8 {[%clk 0:02:07.8]} 36... d4 {[%clk 0:03:21]} 37. h4 {[%clk 0:01:58.9]} 37...
Rc2 {[%clk 0:03:01.4]} 38. Kg1 {[%clk 0:01:34.6]} 38... Rd2 {[%clk 0:02:47.8]}
39. h5 {[%clk 0:01:29.7]} 39... Qe4 {[%clk 0:02:09.5]} 40. Rf1 {[%clk
0:01:10.1]} 40... Rb2 {[%clk 0:02:02.9]} 41. Qc7 {[%clk 0:01:00.5]} 41... d3
{[%clk 0:01:46.7]} 42. f3 {[%clk 0:00:33.7]} 42... Qe3+ {[%clk 0:01:40.1]} 43.
Kh1 {[%clk 0:00:31]} 43... Qxb6 {[%clk 0:01:35.2]} 44. Qc3 {[%clk 0:00:25.6]}
44... Rb3 {[%clk 0:01:27.8]} 45. Qc8 {[%clk 0:00:19.8]} 45... Rb1 {[%clk
0:01:15.9]} 46. Qf5+ {[%clk 0:00:17.7]} 46... Kg8 {[%clk 0:01:10.5]} 47. Qc8+
{[%clk 0:00:15.9]} 47... Kf7 {[%clk 0:01:09.2]} 48. Qd7+ {[%clk 0:00:14.4]}
48... Kf8 {[%clk 0:01:07.7]} 49. Qc8+ {[%clk 0:00:13.1]} 49... Ke7 {[%clk
0:01:06.4]} 50. Rxb1 {[%clk 0:00:08.2]} 50... Qxb1+ {[%clk 0:01:03.8]} 51. Kh2
{[%clk 0:00:07.7]} 51... Qc2 {[%clk 0:00:59.2]} 52. Qb7+ {[%clk 0:00:05.6]}
52... Kd6 {[%clk 0:00:56.8]} 53. Qxg7 {[%clk 0:00:03.6]} 53... d2 {[%clk
0:00:53.5]} 54. Qxf6+ {[%clk 0:00:02.6]} 54... Kd5 {[%clk 0:00:52.9]} 55. Qd8+
{[%clk 0:00:00.7]} 55... Kc4 {[%clk 0:00:51.5]} 0-1

[Event "Live Chess"]
[Site "Chess.com"]
[Date "2023.05.20"]
[Round "-"]
[White "alexlines8"]
[Black "YF22Raptor"]
[Result "1-0"]
[WhiteElo "1257"]
[BlackElo "1011"]
[TimeControl "300"]
[EndTime "11:07:40 PDT"]
[Termination "alexlines8 won by checkmate"]

1. e4 {[%clk 0:04:55.4]} 1... c6 {[%clk 0:04:59.9]} 2. d4 {[%clk 0:04:52.7]}
2... d5 {[%clk 0:04:59.6]} 3. f3 {[%clk 0:04:52]} 3... Nf6 {[%clk 0:04:58]} 4.
e5 {[%clk 0:04:50]} 4... Nfd7 {[%clk 0:04:54.3]} 5. Nc3 {[%clk 0:04:47.5]} 5...
Nb6 {[%clk 0:04:53.2]} 6. Bd3 {[%clk 0:04:44]} 6... e6 {[%clk 0:04:50.3]} 7. f4
{[%clk 0:04:40.9]} 7... Bd7 {[%clk 0:04:49.6]} 8. Nf3 {[%clk 0:04:39.9]} 8... c5
{[%clk 0:04:48.9]} 9. O-O {[%clk 0:04:28.7]} 9... c4 {[%clk 0:04:47.2]} 10. Be2
{[%clk 0:04:28]} 10... Bb4 {[%clk 0:04:44.7]} 11. Bd2 {[%clk 0:04:23.7]} 11...
Bxc3 {[%clk 0:04:40.9]} 12. Bxc3 {[%clk 0:04:23.6]} 12... O-O {[%clk 0:04:39.2]}
13. b3 {[%clk 0:04:21.5]} 13... Nc6 {[%clk 0:04:37]} 14. bxc4 {[%clk 0:04:19]}
14... dxc4 {[%clk 0:04:34.7]} 15. Qb1 {[%clk 0:04:01.9]} 15... Be8 {[%clk
0:04:22.4]} 16. Bd2 {[%clk 0:03:56.7]} 16... Nxd4 {[%clk 0:04:15.5]} 17. c3
{[%clk 0:03:40.7]} 17... Nxe2+ {[%clk 0:04:13.2]} 18. Kh1 {[%clk 0:03:33.8]}
18... Nd5 {[%clk 0:03:58.1]} 19. Ng5 {[%clk 0:03:31.6]} 19... h6 {[%clk
0:03:51.5]} 20. Qh7# {[%clk 0:03:29.2]} 1-0

[Event "Live Chess"]
[Site "Chess.com"]
[Date "2023.05.20"]
[Round "-"]
[White "LodeshChess"]
[Black "birdseed45"]
[Result "0-1"]
[WhiteElo "956"]
[BlackElo "1866"]
[TimeControl "300"]
[EndTime "11:07:46 PDT"]
[Termination "birdseed45 won by resignation"]

1. e4 {[%clk 0:04:58.7]} 1... c5 {[%clk 0:04:58.4]} 2. Nf3 {[%clk 0:04:57.6]}
2... Nc6 {[%clk 0:04:57.6]} 3. Bb5 {[%clk 0:04:57]} 3... d6 {[%clk 0:04:56.3]}
4. Bxc6+ {[%clk 0:04:54.9]} 4... bxc6 {[%clk 0:04:54.6]} 5. d3 {[%clk
0:04:54.3]} 5... e5 {[%clk 0:04:54.2]} 6. Nc3 {[%clk 0:04:48.1]} 6... f5 {[%clk
0:04:53.4]} 7. O-O {[%clk 0:04:45.2]} 7... fxe4 {[%clk 0:04:52]} 8. Nxe4 {[%clk
0:04:43.7]} 8... Nf6 {[%clk 0:04:51.3]} 9. Bg5 {[%clk 0:04:41.2]} 9... Be7
{[%clk 0:04:49.6]} 10. c4 {[%clk 0:04:28.6]} 10... O-O {[%clk 0:04:45.4]} 11. b3
{[%clk 0:04:25.2]} 11... Bg4 {[%clk 0:04:39]} 12. h3 {[%clk 0:04:20.4]} 12...
Bh5 {[%clk 0:04:37.5]} 13. g4 {[%clk 0:04:12.1]} 13... Bg6 {[%clk 0:04:34.8]}
14. Nxf6+ {[%clk 0:04:11.6]} 14... Bxf6 {[%clk 0:04:32.6]} 15. Bxf6 {[%clk
0:04:10.8]} 15... Qxf6 {[%clk 0:04:31.5]} 16. Kg2 {[%clk 0:03:59.8]} 16... h5
{[%clk 0:04:30.3]} 17. Kg3 {[%clk 0:03:51.4]} 17... Qf4+ {[%clk 0:04:24.3]} 18.
Kh4 {[%clk 0:03:40.7]} 18... hxg4 {[%clk 0:04:12.9]} 19. hxg4 {[%clk 0:03:39]}
19... Qxf3 {[%clk 0:04:09.9]} 20. Qxf3 {[%clk 0:03:36.2]} 20... Rxf3 {[%clk
0:04:09.8]} 21. Rh1 {[%clk 0:03:32.1]} 21... Kf7 {[%clk 0:04:07]} 22. Kg5 {[%clk
0:03:26]} 22... Rxf2 {[%clk 0:03:58.3]} 23. Raf1 {[%clk 0:03:23.2]} 23... Rf6
{[%clk 0:03:51.7]} 24. Rxf6+ {[%clk 0:03:10.9]} 24... gxf6+ {[%clk 0:03:51.6]}
25. Kh4 {[%clk 0:03:05.6]} 25... Rh8+ {[%clk 0:03:50.2]} 0-1

[Event "Live Chess"]
[Site "Chess.com"]
[Date "2023.05.20"]
[Round "-"]
[White "DerbyKnight"]
[Black "Chesscoach_Golichenko"]
[Result "0-1"]
[WhiteElo "1599"]
[BlackElo "2653"]
[TimeControl "300"]
[EndTime "11:07:50 PDT"]
[Termination "Chesscoach_Golichenko won by resignation"]

1. d4 {[%clk 0:04:57.1]} 1... Nf6 {[%clk 0:04:57.3]} 2. Nf3 {[%clk 0:04:55.7]}
2... e6 {[%clk 0:04:54.5]} 3. e3 {[%clk 0:04:53.3]} 3... b6 {[%clk 0:04:53.2]}
4. Bd3 {[%clk 0:04:52.7]} 4... Bb7 {[%clk 0:04:51.8]} 5. Nbd2 {[%clk 0:04:48.9]}
5... c5 {[%clk 0:04:49.2]} 6. b3 {[%clk 0:04:46.9]} 6... d5 {[%clk 0:04:45.7]}
7. dxc5 {[%clk 0:04:44.7]} 7... bxc5 {[%clk 0:04:43.1]} 8. c4 {[%clk 0:04:42.5]}
8... d4 {[%clk 0:04:40.5]} 9. e4 {[%clk 0:04:39.6]} 9... Nbd7 {[%clk 0:04:37.4]}
10. O-O {[%clk 0:04:36.7]} 10... e5 {[%clk 0:04:36.5]} 11. Re1 {[%clk
0:04:20.8]} 11... Bd6 {[%clk 0:04:34.6]} 12. Nf1 {[%clk 0:04:20.2]} 12... O-O
{[%clk 0:04:32.6]} 13. Ng3 {[%clk 0:04:19.7]} 13... g6 {[%clk 0:04:30.9]} 14.
Bh6 {[%clk 0:04:17]} 14... Re8 {[%clk 0:04:29.1]} 15. Ng5 {[%clk 0:04:11.6]}
15... a5 {[%clk 0:04:19.7]} 16. Qf3 {[%clk 0:03:58.3]} 16... Qe7 {[%clk
0:04:09.3]} 17. h4 {[%clk 0:03:52.8]} 17... Nb6 {[%clk 0:03:53.9]} 18. h5 {[%clk
0:03:49]} 18... Bc8 {[%clk 0:03:52.4]} 19. Qe2 {[%clk 0:03:19.7]} 19... Ng4
{[%clk 0:03:45.9]} 20. hxg6 {[%clk 0:02:47.7]} 20... fxg6 {[%clk 0:03:38]} 21.
Nxh7 {[%clk 0:02:27.4]} 21... Nxh6 {[%clk 0:03:34.5]} 22. Nf5 {[%clk 0:02:14.9]}
22... gxf5 {[%clk 0:03:27.7]} 23. exf5 {[%clk 0:02:02.8]} 23... Qxh7 {[%clk
0:03:22.6]} 24. f6 {[%clk 0:01:55.2]} 24... Qf7 {[%clk 0:03:21.3]} 25. Qf3
{[%clk 0:01:45.8]} 25... Bg4 {[%clk 0:03:13.6]} 26. Qg3 {[%clk 0:01:40.2]} 26...
Qxf6 {[%clk 0:03:07.8]} 27. Be4 {[%clk 0:01:24.7]} 27... Ra7 {[%clk 0:02:56.9]}
28. f3 {[%clk 0:01:22.4]} 28... Qf4 {[%clk 0:02:49.3]} 29. Qh4 {[%clk
0:01:13.9]} 29... Bf5 {[%clk 0:02:38.4]} 30. Qh5 {[%clk 0:01:05.4]} 30... Rf8
{[%clk 0:02:31.9]} 31. g3 {[%clk 0:00:56.3]} 31... Rg7 {[%clk 0:02:23.9]} 0-1

[Event "Live Chess"]
[Site "Chess.com"]
[Date "2023.05.20"]
[Round "-"]
[White "vinni3012"]
[Black "whitedjohn"]
[Result "0-1"]
[WhiteElo "1821"]
[BlackElo "1678"]
[TimeControl "300"]
[EndTime "11:07:55 PDT"]
[Termination "whitedjohn won by resignation"]

1. d4 {[%clk 0:04:58.1]} 1... Nf6 {[%clk 0:04:57.6]} 2. c4 {[%clk 0:04:57.5]}
2... c5 {[%clk 0:04:55.3]} 3. d5 {[%clk 0:04:55]} 3... e6 {[%clk 0:04:52.5]} 4.
Nc3 {[%clk 0:04:53.9]} 4... exd5 {[%clk 0:04:51.2]} 5. cxd5 {[%clk 0:04:53.8]}
5... d6 {[%clk 0:04:49.1]} 6. Nf3 {[%clk 0:04:52.1]} 6... g6 {[%clk 0:04:46.7]}
7. h3 {[%clk 0:04:46.3]} 7... Bg7 {[%clk 0:04:45]} 8. Bg5 {[%clk 0:04:42.8]}
8... O-O {[%clk 0:04:42.2]} 9. e3 {[%clk 0:04:41.9]} 9... h6 {[%clk 0:04:40]}
10. Bh4 {[%clk 0:04:39.6]} 10... g5 {[%clk 0:04:35]} 11. Bg3 {[%clk 0:04:38.5]}
11... a6 {[%clk 0:04:33.5]} 12. a4 {[%clk 0:04:37.1]} 12... b6 {[%clk
0:04:32.4]} 13. Bd3 {[%clk 0:04:33.6]} 13... Qe7 {[%clk 0:04:30.4]} 14. O-O
{[%clk 0:04:26.9]} 14... Nbd7 {[%clk 0:04:28.1]} 15. Bh2 {[%clk 0:04:04.1]}
15... Nh7 {[%clk 0:04:08]} 16. Qc2 {[%clk 0:03:56.1]} 16... Nhf6 {[%clk
0:03:58.5]} 17. Nd2 {[%clk 0:03:31]} 17... Ne5 {[%clk 0:03:40.6]} 18. Nc4 {[%clk
0:03:20]} 18... Nxc4 {[%clk 0:03:36.4]} 19. Bxc4 {[%clk 0:03:18.8]} 19... Nd7
{[%clk 0:03:31.3]} 20. e4 {[%clk 0:02:44.2]} 20... Ne5 {[%clk 0:03:28.1]} 21.
Be2 {[%clk 0:02:42.4]} 21... f5 {[%clk 0:03:21.8]} 22. f4 {[%clk 0:02:24.8]}
22... gxf4 {[%clk 0:03:17.4]} 23. Rxf4 {[%clk 0:02:24.7]} 23... Ng6 {[%clk
0:03:10.5]} 24. Rff1 {[%clk 0:02:11.3]} 24... Bd4+ {[%clk 0:03:05.6]} 25. Kh1
{[%clk 0:02:10.2]} 25... Bd7 {[%clk 0:02:48]} 26. exf5 {[%clk 0:01:51.9]} 26...
Ne5 {[%clk 0:02:35]} 27. Rae1 {[%clk 0:01:36.2]} 27... Rf6 {[%clk 0:02:26.1]}
28. g4 {[%clk 0:01:23.1]} 28... Raf8 {[%clk 0:02:18.5]} 29. Ne4 {[%clk
0:01:19.1]} 29... R6f7 {[%clk 0:02:11.9]} 30. Bf4 {[%clk 0:01:07.4]} 30... h5
{[%clk 0:02:06.5]} 31. Ng5 {[%clk 0:00:59.5]} 31... Rf6 {[%clk 0:01:54.4]} 32.
Ne6 {[%clk 0:00:43.7]} 32... Bxe6 {[%clk 0:01:44.7]} 33. dxe6 {[%clk 0:00:43.6]}
33... hxg4 {[%clk 0:01:38.3]} 34. hxg4 {[%clk 0:00:40.3]} 34... Qh7+ {[%clk
0:01:31.6]} 35. Kg2 {[%clk 0:00:38]} 35... Qg7 {[%clk 0:01:24.1]} 36. Qd1 {[%clk
0:00:18.3]} 36... Rxf5 {[%clk 0:01:17.2]} 37. Bd3 {[%clk 0:00:13.2]} 37... Rxf4
{[%clk 0:01:14.4]} 0-1

[Event "Live Chess"]
[Site "Chess.com"]
[Date "2023.05.20"]
[Round "-"]
[White "raminguy"]
[Black "flyingpuffins"]
[Result "0-1"]
[WhiteElo "1977"]
[BlackElo "1990"]
[TimeControl "300"]
[EndTime "11:08:00 PDT"]
[Termination "flyingpuffins won by resignation"]

1. d4 {[%clk 0:04:59.3]} 1... d5 {[%clk 0:04:57.9]} 2. Nc3 {[%clk 0:04:58.5]}
2... Nf6 {[%clk 0:04:56.5]} 3. Bf4 {[%clk 0:04:57.9]} 3... a6 {[%clk 0:04:54.6]}
4. e3 {[%clk 0:04:57]} 4... c5 {[%clk 0:04:54.2]} 5. dxc5 {[%clk 0:04:55.2]}
5... e6 {[%clk 0:04:47.9]} 6. b4 {[%clk 0:04:53.8]} 6... Nc6 {[%clk 0:04:45.7]}
7. a3 {[%clk 0:04:52]} 7... e5 {[%clk 0:04:36.1]} 8. Bg5 {[%clk 0:04:50]} 8...
Be7 {[%clk 0:04:33.7]} 9. Bxf6 {[%clk 0:04:47.7]} 9... Bxf6 {[%clk 0:04:33]} 10.
Nxd5 {[%clk 0:04:45.7]} 10... O-O {[%clk 0:04:28.6]} 11. Nxf6+ {[%clk
0:04:40.1]} 11... Qxf6 {[%clk 0:04:28.5]} 12. Nf3 {[%clk 0:04:37]} 12... e4
{[%clk 0:04:25.4]} 13. Nd4 {[%clk 0:04:27.8]} 13... Rd8 {[%clk 0:04:17.5]} 14.
c3 {[%clk 0:04:26.5]} 14... a5 {[%clk 0:04:15.8]} 15. Be2 {[%clk 0:04:23.6]}
15... axb4 {[%clk 0:04:14.6]} 16. axb4 {[%clk 0:04:22.4]} 16... Rxa1 {[%clk
0:04:11.7]} 17. Qxa1 {[%clk 0:04:21.8]} 17... Qg6 {[%clk 0:04:07]} 18. Kf1
{[%clk 0:04:05.2]} 18... Ne5 {[%clk 0:04:01.4]} 19. Qa5 {[%clk 0:03:57.2]} 19...
Rf8 {[%clk 0:03:54.1]} 20. Qc7 {[%clk 0:03:35.6]} 20... Nd3 {[%clk 0:03:49.9]}
21. Qg3 {[%clk 0:03:20]} 21... Qa6 {[%clk 0:03:39.8]} 22. Bxd3 {[%clk 0:02:59]}
22... Qxd3+ {[%clk 0:03:20.6]} 23. Ke1 {[%clk 0:02:53.1]} 23... Qb1+ {[%clk
0:03:17.9]} 24. Ke2 {[%clk 0:02:51.3]} 24... Qxh1 {[%clk 0:03:16.6]} 25. Qe5
{[%clk 0:02:39.8]} 25... Qxg2 {[%clk 0:03:06.6]} 26. b5 {[%clk 0:02:36.9]} 26...
Be6 {[%clk 0:02:59.1]} 27. Nxe6 {[%clk 0:02:34.7]} 27... fxe6 {[%clk 0:02:58]}
28. Qxe6+ {[%clk 0:02:33.7]} 28... Kh8 {[%clk 0:02:57.4]} 0-1

[Event "Live Chess"]
[Site "Chess.com"]
[Date "2023.05.20"]
[Round "-"]
[White "yeetpizza74"]
[Black "martynstanley"]
[Result "1/2-1/2"]
[WhiteElo "455"]
[BlackElo "999"]
[TimeControl "300"]
[EndTime "11:08:01 PDT"]
[Termination "Game drawn by stalemate"]

1. e4 {[%clk 0:04:57.1]} 1... e6 {[%clk 0:04:59.2]} 2. d4 {[%clk 0:04:55.4]}
2... d5 {[%clk 0:04:58.2]} 3. e5 {[%clk 0:04:54.5]} 3... c5 {[%clk 0:04:55.9]}
4. c3 {[%clk 0:04:51.7]} 4... Nc6 {[%clk 0:04:55.1]} 5. Bb5 {[%clk 0:04:45.3]}
5... Qb6 {[%clk 0:04:53.2]} 6. Bxc6+ {[%clk 0:04:40.7]} 6... bxc6 {[%clk
0:04:52.4]} 7. dxc5 {[%clk 0:04:39.1]} 7... Bxc5 {[%clk 0:04:51.1]} 8. Be3
{[%clk 0:04:37.6]} 8... Bxe3 {[%clk 0:04:49.8]} 9. fxe3 {[%clk 0:04:35.8]} 9...
Qxe3+ {[%clk 0:04:48.8]} 10. Ne2 {[%clk 0:04:33.9]} 10... Ba6 {[%clk 0:04:44.8]}
11. Nd2 {[%clk 0:04:07.7]} 11... f6 {[%clk 0:04:37.3]} 12. b3 {[%clk 0:03:58.2]}
12... fxe5 {[%clk 0:04:28.4]} 13. c4 {[%clk 0:03:56.7]} 13... dxc4 {[%clk
0:04:26.7]} 14. Nxc4 {[%clk 0:03:53.3]} 14... Bxc4 {[%clk 0:04:25]} 15. bxc4
{[%clk 0:03:51.6]} 15... c5 {[%clk 0:04:22.5]} 16. Rb1 {[%clk 0:03:38.1]} 16...
Ne7 {[%clk 0:04:19.9]} 17. Rf1 {[%clk 0:03:30.5]} 17... Rf8 {[%clk 0:04:17.4]}
18. Rxf8+ {[%clk 0:03:28.6]} 18... Kxf8 {[%clk 0:04:16.8]} 19. Kf1 {[%clk
0:03:15.1]} 19... Nf5 {[%clk 0:04:12.7]} 20. Ng3 {[%clk 0:03:06.5]} 20... Nd4
{[%clk 0:04:09.9]} 21. Qh5 {[%clk 0:02:48.9]} 21... Ke7 {[%clk 0:04:07.9]} 22.
Qxh7 {[%clk 0:02:43]} 22... Rf8+ {[%clk 0:04:07.5]} 23. Nf5+ {[%clk 0:02:36.3]}
23... Rxf5+ {[%clk 0:04:02.4]} 24. Qxf5 {[%clk 0:02:32.3]} 24... Nxf5 {[%clk
0:03:59.2]} 25. Re1 {[%clk 0:02:26.9]} 25... Qd3+ {[%clk 0:03:57.2]} 26. Kf2
{[%clk 0:02:23.5]} 26... Qd2+ {[%clk 0:03:53.6]} 27. Re2 {[%clk 0:02:18.4]}
27... Qxe2+ {[%clk 0:03:52.7]} 28. Kxe2 {[%clk 0:02:16.9]} 28... Kd6 {[%clk
0:03:51.7]} 29. Kd3 {[%clk 0:02:14.2]} 29... a5 {[%clk 0:03:49.4]} 30. a4 {[%clk
0:02:11.9]} 30... Nd4 {[%clk 0:03:48.3]} 31. g4 {[%clk 0:02:08.3]} 31... g6
{[%clk 0:03:45.6]} 32. h4 {[%clk 0:02:06.8]} 32... Nf3 {[%clk 0:03:44]} 33. h5
{[%clk 0:02:03.5]} 33... gxh5 {[%clk 0:03:43.2]} 34. gxh5 {[%clk 0:02:02.7]}
34... Ng5 {[%clk 0:03:41.3]} 35. h6 {[%clk 0:02:01.7]} 35... Nf7 {[%clk
0:03:40.5]} 36. h7 {[%clk 0:02:00.3]} 36... e4+ {[%clk 0:03:39.2]} 37. Kxe4
{[%clk 0:01:59.1]} 37... e5 {[%clk 0:03:38.6]} 38. Kf5 {[%clk 0:01:58.1]} 38...
e4 {[%clk 0:03:35.8]} 39. Kxe4 {[%clk 0:01:56.8]} 39... Ke6 {[%clk 0:03:34.3]}
40. Kf4 {[%clk 0:01:55.4]} 40... Kf6 {[%clk 0:03:33.2]} 41. Ke4 {[%clk
0:01:53.2]} 41... Kg6 {[%clk 0:03:32.1]} 42. Kd5 {[%clk 0:01:52.7]} 42... Kxh7
{[%clk 0:03:30.7]} 43. Kxc5 {[%clk 0:01:52.3]} 43... Ne5 {[%clk 0:03:27.9]} 44.
Kb5 {[%clk 0:01:50.3]} 44... Kg6 {[%clk 0:03:27.3]} 45. c5 {[%clk 0:01:49.1]}
45... Kf5 {[%clk 0:03:25.4]} 46. c6 {[%clk 0:01:48.2]} 46... Ke4 {[%clk
0:03:24.2]} 47. c7 {[%clk 0:01:46.5]} 47... Nd3 {[%clk 0:03:21.8]} 48. c8=Q
{[%clk 0:01:44.4]} 48... Nb2 {[%clk 0:03:19]} 49. Qe8+ {[%clk 0:01:38.4]} 49...
Kd4 {[%clk 0:03:17.6]} 50. Qd7+ {[%clk 0:01:34.8]} 50... Kc3 {[%clk 0:03:16.2]}
51. Kxa5 {[%clk 0:01:26.2]} 51... Nc4+ {[%clk 0:03:13.6]} 52. Kb5 {[%clk
0:01:23.2]} 52... Na3+ {[%clk 0:03:11.7]} 53. Kb6 {[%clk 0:01:17.6]} 53... Nc4+
{[%clk 0:03:10.2]} 54. Kc7 {[%clk 0:01:14.7]} 54... Ne5 {[%clk 0:03:06.8]} 55.
Qe7 {[%clk 0:01:06.4]} 55... Nc4 {[%clk 0:03:04.6]} 56. Qc5 {[%clk 0:00:58.2]}
56... Kb3 {[%clk 0:03:03]} 57. a5 {[%clk 0:00:55]} 57... Nxa5 {[%clk 0:03:01.8]}
58. Qxa5 {[%clk 0:00:53.6]} 58... Kc4 {[%clk 0:03:00.6]} 59. Qe5 {[%clk
0:00:50.8]} 59... Kd3 {[%clk 0:02:59.2]} 60. Qc5 {[%clk 0:00:46]} 60... Ke4
{[%clk 0:02:54.8]} 61. Kd6 {[%clk 0:00:44.3]} 61... Kf3 {[%clk 0:02:53.5]} 62.
Qc8 {[%clk 0:00:36.3]} 62... Ke3 {[%clk 0:02:51.8]} 63. Kd5 {[%clk 0:00:34.8]}
63... Kd3 {[%clk 0:02:50.6]} 64. Qc4+ {[%clk 0:00:32.5]} 64... Ke3 {[%clk
0:02:49.4]} 65. Qe4+ {[%clk 0:00:28.9]} 65... Kf2 {[%clk 0:02:45]} 66. Kd4
{[%clk 0:00:27.5]} 66... Kg3 {[%clk 0:02:43]} 67. Qe3+ {[%clk 0:00:24.7]} 67...
Kg4 {[%clk 0:02:41.3]} 68. Ke4 {[%clk 0:00:23.7]} 68... Kh5 {[%clk 0:02:39.6]}
69. Kf4 {[%clk 0:00:19.9]} 69... Kg6 {[%clk 0:02:37.7]} 70. Qe6+ {[%clk
0:00:17.8]} 70... Kg7 {[%clk 0:02:36.4]} 71. Kf5 {[%clk 0:00:15.9]} 71... Kh8
{[%clk 0:02:34.5]} 72. Qe7 {[%clk 0:00:14.2]} 72... Kg8 {[%clk 0:02:33.3]} 73.
Qe6+ {[%clk 0:00:11.3]} 73... Kf8 {[%clk 0:02:31.8]} 74. Qd6+ {[%clk 0:00:07.6]}
74... Ke8 {[%clk 0:02:30.6]} 75. Ke6 {[%clk 0:00:06.5]} 1/2-1/2

[Event "Live Chess"]
[Site "Chess.com"]
[Date "2023.05.20"]
[Round "-"]
[White "zdanevych"]
[Black "minenko-1958"]
[Result "1-0"]
[WhiteElo "1545"]
[BlackElo "1403"]
[TimeControl "300"]
[EndTime "11:08:02 PDT"]
[Termination "zdanevych won by resignation"]

1. d4 {[%clk 0:04:59]} 1... d5 {[%clk 0:04:58.4]} 2. c4 {[%clk 0:04:58.2]} 2...
dxc4 {[%clk 0:04:57]} 3. e4 {[%clk 0:04:57.3]} 3... c6 {[%clk 0:04:54.5]} 4.
Bxc4 {[%clk 0:04:56.5]} 4... e6 {[%clk 0:04:52.4]} 5. Nc3 {[%clk 0:04:54.4]}
5... a5 {[%clk 0:04:48.1]} 6. Nf3 {[%clk 0:04:51.1]} 6... h6 {[%clk 0:04:46.1]}
7. e5 {[%clk 0:04:48.9]} 7... Bb4 {[%clk 0:04:41.6]} 8. a3 {[%clk 0:04:47.3]}
8... Be7 {[%clk 0:04:37.4]} 9. O-O {[%clk 0:04:35.1]} 9... b5 {[%clk 0:04:35.5]}
10. Bb3 {[%clk 0:04:33.6]} 10... a4 {[%clk 0:04:34.4]} 11. Bc2 {[%clk
0:04:32.4]} 11... Qb6 {[%clk 0:04:18.6]} 12. Be3 {[%clk 0:04:30.7]} 12... Qb7
{[%clk 0:04:16.4]} 13. Rc1 {[%clk 0:04:24.9]} 13... Nd7 {[%clk 0:04:14.5]} 14.
Bb1 {[%clk 0:04:22.8]} 14... Nb6 {[%clk 0:04:13]} 15. Ne4 {[%clk 0:04:17.8]}
15... Nc4 {[%clk 0:04:06.9]} 16. h3 {[%clk 0:03:58.1]} 16... Nxb2 {[%clk
0:04:04.7]} 17. Qc2 {[%clk 0:03:47.6]} 17... Nc4 {[%clk 0:04:02.6]} 18. Qc3
{[%clk 0:03:42.4]} 18... Bxa3 {[%clk 0:03:57.6]} 19. Ba2 {[%clk 0:03:39.1]}
19... Bxc1 {[%clk 0:03:55.4]} 20. Rxc1 {[%clk 0:03:39]} 20... Bd7 {[%clk
0:03:48.4]} 21. Bxc4 {[%clk 0:03:35.9]} 21... bxc4 {[%clk 0:03:46.5]} 22. Nd6+
{[%clk 0:03:34.9]} 22... Ke7 {[%clk 0:03:39.8]} 23. Nxb7 {[%clk 0:03:34.8]} 1-0